[Event "Fagernes Open 2021"]
[Site "Fagernes"]
[Date "2021.10.13"]
[Round "5.5"]
[White "Stromhaug, Kristoffer Wang"]
[Black "Galinsky, Misha"]
[Result "1/2-1/2"]
[ECO "C50"]
[WhiteElo "1718"]
[BlackElo "1756"]
[Annotator "NA RC"]
[PlyCount "95"]
[EventDate "2021.10.10"]
[EventCountry "NOR"]
[SourceTitle "playchess.com"]
[Source "ChessBase"]
[SourceQuality "1"]
[TimeControl "40/5400+30:1800+30"]

1. e4 {[%emt 0:00:00]} e5 {[%emt 0:00:00]} 2. Nf3 {[%emt 0:00:00]} Nc6 {[%emt 0:00:00]} 3. Bc4 {[%emt 0:00:00]} Bc5 {[%emt 0:00:00]} 4. O-O {[%emt 0:00:00]} Nf6 {[%emt 0:00:00]} 5. Nc3 {[%emt 0:00:00]} O-O {[%emt 0:00:00]} 6. d3 {[%emt 0:00:00]} h6 {[%emt 0:00:00]} 7. Nd5 {[%emt 0:00:00]} d6 {[%emt 0:00:00]} 8. Be3 {[%emt 0:10:51]} Bxe3 {[%emt 0:00:00]} 9. Nxe3 {[%emt 0:00:53]} Ne7 {[%emt 0:00:00]} 10. c3 {[%emt 0:05:48]} c6 {[%emt 0:04:09]} 11. Bb3 {[%emt 0:05:14]} Ng6 {[%emt 0:02:15]} 12. Qc2 {[%emt 0:06:58]} d5 {[%emt 0:01:25]} 13. exd5 {[%emt 0:00:49]} cxd5 {[%emt 0:00:02]} 14. d4 {[%emt 0:02:28]} e4 {[%emt 0:07:01]} 15. Ne5 {[%emt 0:01:15]} Nf4 {[%emt 0:01:18]} 16. f3 {[%emt 0:03:42]} exf3 {[%emt 0:18:01]} 17. Rxf3 {[%emt 0:00:53]} Ne6 {[%emt 0:00:08]} 18. Raf1 {[%emt 0:08:59]} Ng5 {[%emt 0:01:57]} 19. Rf4 {[%emt 0:07:28]} Be6 {[%emt 0:01:36]} 20. Qd3 {[%emt 0:08:20]} Rc8 {[%emt 0:05:12]} 21. Bc2 {[%emt 0:05:56]} Nge4 {[%emt 0:02:57]} 22. Nf5 {[%emt 0:06:54]} Bxf5 {[%emt 0:16:21]} 23. Rxf5 {[%emt 0:00:25]} Re8 {[%emt 0:04:33]} 24. Qe3 {[%emt 0:06:29]} Re6 {[%emt 0:09:25]} 25. Bxe4 {[%emt 0:02:47]} dxe4 {[%emt 0:00:09]} 26. g4 {[%emt 0:04:23]} Rxe5 {[%emt 0:14:05]} 27. Rxf6 {[%emt 0:01:44]} gxf6 {[%emt 0:00:56]} 28. dxe5 {[%emt 0:00:07]} fxe5 {[%emt 0:00:27]} 29. Qxh6 {[%emt 0:01:20]} Rc6 {[%emt 0:00:45]} 30. Qe3 {[%emt 0:00:40]} Rg6 {[%emt 0:06:56]} 31. h3 {[%emt 0:02:09]} Qd3 {[%emt 0:01:13]} 32. Re1 {[%emt 0:03:13]} Qxe3+ {[%emt 0:00:10]} 33. Rxe3 {[%emt 0:00:01]} f5 {[%emt 0:00:06]} 34. Kh2 {[%emt 0:00:45]} fxg4 {[%emt 0:00:16]} 35. Rxe4 {[%emt 0:00:47]} gxh3 {[%emt 0:00:05]} 36. Kxh3 {[%emt 0:00:15]} Rb6 {[%emt 0:01:43]} 37. b3 {[%emt 0:01:54]} Rc6 {[%emt 0:00:41]} 38. c4 {[%emt 0:00:14]} Ra6 {[%emt 0:00:20]} 39. a4 {[%emt 0:01:37]} Rb6 {[%emt 0:00:04]} 40. Re3 {[%emt 0:02:30]} Kf7 {[%emt 0:00:39]} 41. Kg4 {[%emt 0:30:13]} Ke6 {[%emt 0:33:10]} 42. Kg5 {[%emt 0:00:00]} Kd6 {[%emt 0:00:00]} 43. Kf5 {[%emt 0:00:00]} Kc5 {[%emt 0:00:00]} 44. Rxe5+ {[%emt 0:00:00]} Kd4 {[%emt 0:00:00]} 45. Rb5 {[%emt 0:00:00]} Rxb5+ {[%emt 0:00:00]} 46. axb5 {[%emt 0:00:00]} a6 {[%emt 0:00:00]} 47. bxa6 {[%emt 0:00:00]} bxa6 {[%emt 0:00:00]} 48. Ke6 {[%emt 0:00:00]} 1/2-1/2

[Event "Fagernes Open 2021"]
[Site "Fagernes"]
[Date "2021.10.13"]
[Round "5.7"]
[White "Bach, Oliver"]
[Black "Fredriksen, Jan Gunnar"]
[Result "0-1"]
[ECO "D31"]
[WhiteElo "1715"]
[BlackElo "1835"]
[Annotator "NA"]
[PlyCount "101"]
[EventDate "2021.10.10"]
[EventCountry "NOR"]
[SourceTitle "playchess.com"]
[Source "ChessBase"]
[SourceQuality "1"]
[TimeControl "40/5400+30:1800+30"]

1. Nf3 {[%emt 0:00:00]} d5 {[%emt 0:00:00]} 2. d4 {[%emt 0:00:00]} e6 {[%emt 0:00:00]} 3. c4 {[%emt 0:00:00]} c6 {[%emt 0:00:00]} 4. Nc3 {[%emt 0:00:00]} dxc4 {[%emt 0:00:00]} 5. e4 {[%emt 0:00:00]} b5 {[%emt 0:00:00]} 6. Be2 {[%emt 0:00:00]} Nf6 {[%emt 0:00:00]} 7. e5 {[%emt 0:00:00]} Nd5 {[%emt 0:00:00]} 8. O-O {[%emt 0:00:00]} Qb6 {[%emt 0:00:00]} 9. h4 {[%emt 0:00:00]} Nd7 {[%emt 0:00:00]} 10. h5 {[%emt 0:00:00]} h6 {[%emt 0:00:00]} 11. a3 {[%emt 0:01:24]} Bb7 {[%emt 0:01:24]} 12. Qc2 {[%emt 0:01:28]} c5 {[%emt 0:03:24]} 13. Nxd5 {[%emt 0:05:06]} Bxd5 {[%emt 0:00:12]} 14. Be3 {[%emt 0:00:32]} Rd8 {[%emt 0:03:08]} 15. Rfd1 {[%emt 0:02:07]} Be7 {[%emt 0:04:31]} 16. Qc1 {[%emt 0:01:56]} cxd4 {[%emt 0:02:44]} 17. Rxd4 {[%emt 0:01:47]} Bc5 {[%emt 0:01:20]} 18. Rg4 {[%emt 0:01:40]} Bxe3 {[%emt 0:00:52]} 19. fxe3 {[%emt 0:00:19]} O-O {[%emt 0:04:23]} 20. Kh1 {[%emt 0:00:28]} Bxf3 {[%emt 0:01:07]} 21. gxf3 {[%emt 0:00:56]} Nxe5 {[%emt 0:00:07]} 22. Rg2 {[%emt 0:01:28]} f6 {[%emt 0:01:20]} 23. e4 {[%emt 0:05:20]} Kf7 {[%emt 0:02:41]} 24. Qf4 {[%emt 0:01:14]} g5 {[%emt 0:15:31]} 25. hxg6+ {[%emt 0:00:43]} Kg7 {[%emt 0:02:04]} 26. Rag1 {[%emt 0:04:12]} Qd6 {[%emt 0:02:26]} 27. Rh2 {[%emt 0:02:28]} Rh8 {[%emt 0:00:13]} 28. Rh5 {[%emt 0:01:40]} Qd2 {[%emt 0:02:23]} 29. Qh2 {[%emt 0:01:19]} Qxb2 {[%emt 0:01:48]} 30. f4 {[%emt 0:01:24]} Nd3 {[%emt 0:05:13]} 31. Rf1 {[%emt 0:06:09]} a6 {[%emt 0:04:59]} 32. a4 {[%emt 0:03:08]} bxa4 {[%emt 0:06:13]} 33. Qg2 {[%emt 0:00:37]} a3 {[%emt 0:03:28]} 34. Ra5 {[%emt 0:01:00]} Rd6 {[%emt 0:01:54]} 35. e5 {[%emt 0:00:54]} Rb6 {[%emt 0:02:02]} 36. exf6+ {[%emt 0:01:03]} Qxf6 {[%emt 0:00:33]} 37. Rxa3 {[%emt 0:07:04]} Qh4+ {[%emt 0:02:28]} 38. Kg1 {[%emt 0:01:37]} Nxf4 {[%emt 0:00:22]} 39. Rxf4 {[%emt 0:04:03]} Qxf4 {[%emt 0:00:09]} 40. Rf3 {[%emt 0:01:16]} Qg5 {[%emt 0:03:22]} 41. Rg3 {[%emt 0:33:58]} Rb1+ {[%emt 0:30:25]} 42. Kh2 {[%emt 0:05:03]} Qh4+ {[%emt 0:00:27]} 43. Rh3 {[%emt 0:00:28]} Qf4+ {[%emt 0:00:08]} 44. Rg3 {[%emt 0:00:27]} Rb3 {[%emt 0:02:13]} 45. Bf3 {[%emt 0:04:12]} Rf8 {[%emt 0:00:40]} 46. Bb7 {[%emt 0:01:46]} Qh4+ {[%emt 0:00:33]} 47. Rh3 {[%emt 0:00:51]} Rxh3+ {[%emt 0:00:14]} 48. Qxh3 {[%emt 0:00:17]} Rf2+ {[%emt 0:00:11]} 49. Bg2 {[%emt 0:00:17]} Qxh3+ {[%emt 0:00:14]} 50. Kxh3 {[%emt 0:00:07]} Rxg2 {[%emt 0:00:11]} 51. Kxg2 {[%emt 0:00:08]} 0-1

[Event "Fagernes Open 2021"]
[Site "Fagernes"]
[Date "2021.10.13"]
[Round "5.8"]
[White "Strand, Amund Pihl"]
[Black "Lye, Sigurd"]
[Result "1/2-1/2"]
[ECO "A23"]
[WhiteElo "1712"]
[BlackElo "1821"]
[Annotator "NA RC"]
[PlyCount "76"]
[EventDate "2021.10.10"]
[EventCountry "NOR"]
[SourceTitle "playchess.com"]
[Source "ChessBase"]
[SourceQuality "1"]
[TimeControl "40/5400+30:1800+30"]

1. c4 {[%emt 0:00:00]} e5 {[%emt 0:00:00]} 2. Nc3 {[%emt 0:00:00]} Nf6 {[%emt 0:00:00]} 3. g3 {[%emt 0:00:00]} c6 {[%emt 0:00:00]} 4. d4 {[%emt 0:00:00]} e4 {[%emt 0:00:00]} 5. Bg2 {[%emt 0:00:26]} d5 {[%emt 0:00:00]} 6. e3 {[%emt 0:07:55]} Nbd7 {[%emt 0:11:38]} 7. Nh3 {[%emt 0:05:09]} Nb6 {[%emt 0:01:44]} 8. cxd5 {[%emt 0:01:24]} cxd5 {[%emt 0:01:42]} 9. Nf4 {[%emt 0:06:30]} Bd7 {[%emt 0:11:12]} 10. O-O {[%emt 0:05:00]} Bd6 {[%emt 0:04:33]} 11. a4 {[%emt 0:07:18]} a5 {[%emt 0:09:08]} 12. Qb3 {[%emt 0:07:20]} Bc6 {[%emt 0:02:42]} 13. f3 {[%emt 0:19:27]} exf3 {[%emt 0:07:03]} 14. Bxf3 {[%emt 0:00:08]} Bb4 {[%emt 0:00:46]} 15. Be2 {[%emt 0:10:50]} O-O {[%emt 0:01:05]} 16. Qc2 {[%emt 0:05:33]} Qd7 {[%emt 0:02:14]} 17. b3 {[%emt 0:04:45]} Rfe8 {[%emt 0:01:29]} 18. Nd3 {[%emt 0:02:26]} Bd6 {[%emt 0:05:51]} 19. Nc5 {[%emt 0:00:38]} Qe7 {[%emt 0:00:45]} 20. Nb5 {[%emt 0:01:35]} Bxc5 {[%emt 0:00:48]} 21. dxc5 {[%emt 0:00:13]} Bxb5 {[%emt 0:01:38]} 22. axb5 {[%emt 0:01:45]} Rec8 {[%emt 0:08:54]} 23. c6 {[%emt 0:00:37]} bxc6 {[%emt 0:03:36]} 24. bxc6 {[%emt 0:00:06]} Qd6 {[%emt 0:02:42]} 25. Bb5 {[%emt 0:00:41]} Qe5 {[%emt 0:02:20]} 26. Rb1 {[%emt 0:02:17]} Qe4 {[%emt 0:03:16]} 27. Qxe4 {[%emt 0:00:47]} Nxe4 {[%emt 0:00:08]} 28. Rb2 {[%emt 0:03:54]} Nc3 {[%emt 0:00:14]} 29. Bd3 {[%emt 0:01:54]} Rxc6 {[%emt 0:01:11]} 30. Rc2 {[%emt 0:00:46]} Rc7 {[%emt 0:03:29]} 31. Bb2 {[%emt 0:01:05]} Nb5 {[%emt 0:00:20]} 32. Rcf2 {[%emt 0:00:21]} Nd6 {[%emt 0:01:12]} 33. Bd4 {[%emt 0:00:35]} Nd7 {[%emt 0:01:15]} 34. Bb2 {[%emt 0:03:47]} Nf8 {[%emt 0:05:16]} 35. Be5 {[%emt 0:01:07]} Rd8 {[%emt 0:00:58]} 36. Ra1 {[%emt 0:00:30]} Re7 {[%emt 0:02:16]} 37. Bd4 {[%emt 0:01:32]} Ne6 {[%emt 0:01:51]} 38. Rxa5 {[%emt 0:00:30]} Nxd4 {[%emt 0:00:50]} 1/2-1/2

[Event "Fagernes Open 2021"]
[Site "Fagernes"]
[Date "2021.10.13"]
[Round "5.9"]
[White "Johannessen, Theo N"]
[Black "Sekkingstad, Thomas"]
[Result "1-0"]
[ECO "D18"]
[WhiteElo "1668"]
[BlackElo "1812"]
[Annotator "NA RC"]
[PlyCount "57"]
[EventDate "2021.10.10"]
[EventCountry "NOR"]
[SourceTitle "playchess.com"]
[Source "ChessBase"]
[SourceQuality "1"]
[TimeControl "40/5400+30:1800+30"]

1. d4 {[%emt 0:00:00]} d5 {[%emt 0:00:00]} 2. Nf3 {[%emt 0:00:00]} Nf6 {[%emt 0:00:00]} 3. c4 {[%emt 0:00:00]} c6 {[%emt 0:00:00]} 4. Nc3 {[%emt 0:00:00]} dxc4 {[%emt 0:00:00]} 5. a4 {[%emt 0:00:00]} Bf5 {[%emt 0:00:00]} 6. e3 {[%emt 0:00:30]} e6 {[%emt 0:00:00]} 7. Bxc4 {[%emt 0:00:45]} Bb4 {[%emt 0:00:01]} 8. O-O {[%emt 0:02:25]} O-O {[%emt 0:02:20]} 9. Ne5 {[%emt 0:13:05]} Nbd7 {[%emt 0:00:35]} 10. Nxd7 {[%emt 0:07:26]} Qxd7 {[%emt 0:00:32]} 11. f3 {[%emt 0:00:20]} c5 {[%emt 0:02:55]} 12. Na2 {[%emt 0:07:33]} Qc7 {[%emt 0:05:26]} 13. Nxb4 {[%emt 0:04:21]} cxb4 {[%emt 0:00:13]} 14. b3 {[%emt 0:00:53]} Rfd8 {[%emt 0:10:49]} 15. Qe2 {[%emt 0:04:47]} Bg6 {[%emt 0:05:27]} 16. Bb2 {[%emt 0:03:01]} a5 {[%emt 0:08:23]} 17. Rac1 {[%emt 0:01:08]} Qb6 {[%emt 0:00:11]} 18. Rfd1 {[%emt 0:02:37]} h6 {[%emt 0:01:56]} 19. Qf2 {[%emt 0:05:59]} Rac8 {[%emt 0:08:12]} 20. e4 {[%emt 0:03:11]} Ne8 {[%emt 0:04:23]} 21. d5 {[%emt 0:02:35]} Qxf2+ {[%emt 0:02:12]} 22. Kxf2 {[%emt 0:00:07]} exd5 {[%emt 0:12:54]} 23. Bxd5 {[%emt 0:01:05]} Nd6 {[%emt 0:04:14]} 24. Bd4 {[%emt 0:06:34]} b5 {[%emt 0:07:41]} 25. Bb6 {[%emt 0:06:43]} Rxc1 {[%emt 0:01:23]} 26. Rxc1 {[%emt 0:00:10]} Rb8 {[%emt 0:00:01]} 27. Bxa5 {[%emt 0:02:02]} bxa4 {[%emt 0:00:56]} 28. bxa4 {[%emt 0:00:46]} Kf8 {[%emt 0:00:23]} 29. Bc7 {[%emt 0:01:13]} 1-0

[Event "Fagernes Open 2021"]
[Site "Fagernes"]
[Date "2021.10.13"]
[Round "5.10"]
[White "Myagmarsuren, Evsuld"]
[Black "Eriksen, Olai Dyrhaug"]
[Result "1-0"]
[ECO "C54"]
[WhiteElo "1650"]
[BlackElo "1809"]
[Annotator "NA RC"]
[PlyCount "51"]
[EventDate "2021.10.10"]
[EventCountry "NOR"]
[SourceTitle "playchess.com"]
[Source "ChessBase"]
[SourceQuality "1"]
[TimeControl "40/5400+30:1800+30"]

1. e4 {[%emt 0:00:00]} e5 {[%emt 0:00:00]} 2. Nf3 {[%emt 0:00:00]} Nc6 {[%emt 0:00:00]} 3. Bc4 {[%emt 0:00:00]} Nf6 {[%emt 0:00:00]} 4. d3 {[%emt 0:00:00]} Bc5 {[%emt 0:00:00]} 5. c3 {[%emt 0:00:00]} a6 {[%emt 0:00:00]} 6. a4 {[%emt 0:00:00]} d6 {[%emt 0:00:00]} 7. O-O {[%emt 0:00:00]} Ba7 {[%emt 0:00:00]} 8. Bg5 {[%emt 0:00:00]} h6 {[%emt 0:00:00]} 9. Bh4 {[%emt 0:00:00]} g5 {[%emt 0:00:49]} 10. Bg3 {[%emt 0:00:00]} Bg4 {[%emt 0:08:57]} 11. Nbd2 {[%emt 0:02:44]} Qd7 {[%emt 0:11:23]} 12. b4 {[%emt 0:07:25]} Ne7 {[%emt 0:04:36]} 13. Qb3 {[%emt 0:07:25]} Ng6 {[%emt 0:06:52]} 14. d4 {[%emt 0:05:45]} Bxf3 {[%emt 0:07:31]} 15. Nxf3 {[%emt 0:04:15]} g4 {[%emt 0:07:01]} 16. Nh4 {[%emt 0:08:04]} Nxh4 {[%emt 0:12:16]} 17. Bxh4 {[%emt 0:03:41]} Nxe4 {[%emt 0:00:48]} 18. dxe5 {[%emt 0:03:20]} Nd2 {[%emt 0:00:43]} 19. e6 {[%emt 0:00:51]} Qc6 {[%emt 0:00:19]} 20. exf7+ {[%emt 0:00:56]} Kf8 {[%emt 0:00:38]} 21. Qc2 {[%emt 0:01:11]} Nxc4 {[%emt 0:03:14]} 22. Bf6 {[%emt 0:12:24]} Kxf7 {[%emt 0:01:42]} 23. Qf5 {[%emt 0:02:15]} Rhe8 {[%emt 0:06:14]} 24. Bd4+ {[%emt 0:00:34]} Kg8 {[%emt 0:00:59]} 25. Qg6+ {[%emt 0:00:15]} Kf8 {[%emt 0:00:07]} 26. Qg7# {[%emt 0:00:06]} 1-0

[Event "Fagernes Open 2021"]
[Site "Fagernes"]
[Date "2021.10.13"]
[Round "5.11"]
[White "Grindbakken, Erik"]
[Black "Ostensen, Nicolai Maxime"]
[Result "0-1"]
[ECO "B31"]
[WhiteElo "1632"]
[BlackElo "1768"]
[Annotator "NA"]
[PlyCount "80"]
[EventDate "2021.10.10"]
[EventCountry "NOR"]
[SourceTitle "playchess.com"]
[Source "ChessBase"]
[SourceQuality "1"]
[TimeControl "40/5400+30:1800+30"]

1. e4 {[%emt 0:00:00]} c5 {[%emt 0:00:00]} 2. Nc3 {[%emt 0:00:00]} Nc6 {[%emt 0:00:00]} 3. Bb5 {[%emt 0:00:00]} g6 {[%emt 0:00:00]} 4. Nf3 {[%emt 0:00:00]} Bg7 {[%emt 0:00:00]} 5. O-O {[%emt 0:00:00]} Nf6 {[%emt 0:00:00]} 6. Re1 {[%emt 0:00:00]} O-O {[%emt 0:00:00]} 7. h3 {[%emt 0:02:31]} Ne8 {[%emt 0:03:16]} 8. g4 {[%emt 0:06:07]} Nc7 {[%emt 0:01:01]} 9. Bf1 {[%emt 0:00:24]} e6 {[%emt 0:02:19]} 10. d3 {[%emt 0:03:43]} b5 {[%emt 0:05:20]} 11. Bg5 {[%emt 0:05:59]} Qe8 {[%emt 0:01:15]} 12. Bf4 {[%emt 0:01:47]} e5 {[%emt 0:00:13]} 13. Be3 {[%emt 0:01:13]} d6 {[%emt 0:00:44]} 14. Ne2 {[%emt 0:03:02]} a5 {[%emt 0:09:11]} 15. Ng3 {[%emt 0:00:26]} Ne6 {[%emt 0:01:16]} 16. c3 {[%emt 0:01:23]} Ne7 {[%emt 0:02:29]} 17. Qd2 {[%emt 0:02:37]} Bb7 {[%emt 0:05:26]} 18. Bg2 {[%emt 0:01:53]} Rd8 {[%emt 0:06:24]} 19. Rad1 {[%emt 0:05:22]} d5 {[%emt 0:08:04]} 20. Bh6 {[%emt 0:11:48]} dxe4 {[%emt 0:06:00]} 21. Nxe4 {[%emt 0:02:25]} Nc6 {[%emt 0:04:08]} 22. g5 {[%emt 0:14:03]} Qe7 {[%emt 0:04:09]} 23. Bxg7 {[%emt 0:00:55]} Kxg7 {[%emt 0:01:49]} 24. Qe3 {[%emt 0:07:34]} a4 {[%emt 0:05:55]} 25. h4 {[%emt 0:03:31]} a3 {[%emt 0:02:01]} 26. b3 {[%emt 0:01:53]} b4 {[%emt 0:00:50]} 27. c4 {[%emt 0:02:50]} Ned4 {[%emt 0:02:33]} 28. Nxd4 {[%emt 0:02:50]} Nxd4 {[%emt 0:00:10]} 29. Rd2 {[%emt 0:02:20]} Bxe4 {[%emt 0:11:59]} 30. Qxe4 {[%emt 0:00:45]} Rfe8 {[%emt 0:01:08]} 31. f4 {[%emt 0:01:35]} Rd6 {[%emt 0:02:21]} 32. fxe5 {[%emt 0:06:02]} Re6 {[%emt 0:00:24]} 33. Qf4 {[%emt 0:03:31]} Rxe5 {[%emt 0:00:47]} 34. Be4 {[%emt 0:01:26]} Rf5 {[%emt 0:05:24]} 35. Qg3 {[%emt 0:01:43]} Nf3+ {[%emt 0:00:56]} 36. Bxf3 {[%emt 0:01:50]} Qxe1+ {[%emt 0:00:12]} 37. Qxe1 {[%emt 0:00:33]} Rxe1+ {[%emt 0:00:05]} 38. Kf2 {[%emt 0:00:11]} Rb1 {[%emt 0:00:05]} 39. Ke3 {[%emt 0:00:26]} Rb2 {[%emt 0:00:07]} 40. Bd1 {[%emt 0:01:08]} Re5+ {[%emt 0:00:12]} 0-1

[Event "Fagernes Open 2021"]
[Site "Fagernes"]
[Date "2021.10.13"]
[Round "5.12"]
[White "Lystad, Maximilian L"]
[Black "Skigelstrand, Live Jorgensen"]
[Result "0-1"]
[ECO "A20"]
[WhiteElo "1767"]
[BlackElo "1649"]
[Annotator "NA RC"]
[PlyCount "48"]
[EventDate "2021.10.10"]
[EventCountry "NOR"]
[SourceTitle "playchess.com"]
[Source "ChessBase"]
[SourceQuality "1"]
[TimeControl "40/5400+30:1800+30"]

1. c4 {[%emt 0:00:00]} e5 {[%emt 0:00:00]} 2. g3 {[%emt 0:00:00]} Nf6 {[%emt 0:00:00]} 3. Bg2 {[%emt 0:00:00]} c6 {[%emt 0:00:00]} 4. d4 {[%emt 0:00:00]} e4 {[%emt 0:00:00]} 5. Nc3 {[%emt 0:00:00]} d5 {[%emt 0:00:00]} 6. cxd5 {[%emt 0:00:00]} cxd5 {[%emt 0:00:00]} 7. Bg5 {[%emt 0:00:00]} Bb4 {[%emt 0:00:00]} 8. Rc1 {[%emt 0:00:00]} Nc6 {[%emt 0:00:00]} 9. Nh3 {[%emt 0:00:00]} h6 {[%emt 0:01:37]} 10. Bxf6 {[%emt 0:00:16]} Qxf6 {[%emt 0:00:23]} 11. O-O {[%emt 0:01:22]} Bxc3 {[%emt 0:06:46]} 12. bxc3 {[%emt 0:02:48]} O-O {[%emt 0:05:41]} 13. Qb3 {[%emt 0:01:43]} Rd8 {[%emt 0:01:23]} 14. Nf4 {[%emt 0:07:34]} Qd6 {[%emt 0:01:51]} 15. Rfd1 {[%emt 0:07:02]} g5 {[%emt 0:03:00]} 16. Nh3 {[%emt 0:06:35]} Na5 {[%emt 0:00:33]} 17. Qb4 {[%emt 0:09:31]} Nc4 {[%emt 0:01:42]} 18. Qxd6 {[%emt 0:12:35]} Rxd6 {[%emt 0:00:03]} 19. f4 {[%emt 0:01:31]} Bxh3 {[%emt 0:05:56]} 20. Bxh3 {[%emt 0:00:47]} g4 {[%emt 0:00:25]} 21. Bg2 {[%emt 0:00:59]} Ra6 {[%emt 0:00:40]} 22. Rc2 {[%emt 0:02:05]} Ne3 {[%emt 0:00:30]} 23. Rdd2 {[%emt 0:00:14]} Nxc2 {[%emt 0:00:09]} 24. Rxc2 {[%emt 0:00:01]} Rc8 {[%emt 0:00:16]} 0-1

[Event "Fagernes Open 2021"]
[Site "Fagernes"]
[Date "2021.10.13"]
[Round "5.14"]
[White "Haugen, Lars Tormod"]
[Black "Hellesoy, David"]
[Result "0-1"]
[ECO "A27"]
[WhiteElo "1756"]
[BlackElo "1500"]
[Annotator "NA RC"]
[PlyCount "118"]
[EventDate "2021.10.10"]
[EventCountry "NOR"]
[SourceTitle "playchess.com"]
[Source "ChessBase"]
[SourceQuality "1"]
[TimeControl "40/5400+30:1800+30"]

1. c4 {[%emt 0:00:00]} e5 {[%emt 0:00:00]} 2. Nc3 {[%emt 0:00:00]} Nc6 {[%emt 0:00:00]} 3. Nf3 {[%emt 0:00:00]} f5 {[%emt 0:00:00]} 4. d4 {[%emt 0:00:00]} e4 {[%emt 0:00:00]} 5. Ng5 {[%emt 0:00:00]} h6 {[%emt 0:00:00]} 6. Nh3 {[%emt 0:00:00]} g5 {[%emt 0:00:00]} 7. e3 {[%emt 0:00:00]} Nf6 {[%emt 0:00:00]} 8. Be2 {[%emt 0:03:48]} Bg7 {[%emt 0:06:17]} 9. d5 {[%emt 0:16:29]} Ne5 {[%emt 0:08:33]} 10. d6 {[%emt 0:02:24]} Nf7 {[%emt 0:07:48]} 11. c5 {[%emt 0:12:45]} cxd6 {[%emt 0:01:21]} 12. cxd6 {[%emt 0:00:47]} O-O {[%emt 0:06:33]} 13. O-O {[%emt 0:04:13]} Ne8 {[%emt 0:03:42]} 14. Bc4 {[%emt 0:10:46]} Be5 {[%emt 0:07:04]} 15. Qd5 {[%emt 0:03:39]} Qf6 {[%emt 0:09:51]} 16. Nb5 {[%emt 0:11:10]} a6 {[%emt 0:06:53]} 17. Nc7 {[%emt 0:06:46]} Nxc7 {[%emt 0:02:25]} 18. dxc7 {[%emt 0:00:02]} Bxc7 {[%emt 0:00:50]} 19. f3 {[%emt 0:06:18]} Qe5 {[%emt 0:10:31]} 20. Qxe5 {[%emt 0:00:23]} Bxe5 {[%emt 0:00:09]} 21. fxe4 {[%emt 0:00:16]} fxe4 {[%emt 0:01:50]} 22. Nf2 {[%emt 0:06:11]} Kg7 {[%emt 0:04:14]} 23. Ng4 {[%emt 0:04:09]} d5 24. Nxe5 {[%emt 0:00:30]} dxc4 25. Nxc4 {[%emt 0:00:30]} Be6 26. b3 {[%emt 0:00:30]} Rac8 27. Bb2+ {[%emt 0:00:30]} Kg8 28. Rac1 {[%emt 0:00:30]} Bxc4 29. bxc4 {[%emt 0:00:30]} Nd6 30. Rxf8+ {[%emt 0:00:30]} Kxf8 31. c5 {[%emt 0:00:30]} Nf7 32. Kf2 {[%emt 0:00:30]} Ke7 33. Rc4 {[%emt 0:00:30]} Kd7 34. Rd4+ {[%emt 0:00:30]} Kc6 35. Rxe4 {[%emt 0:00:30]} Kxc5 36. Re7 {[%emt 0:00:30]} Nd8 37. Bd4+ {[%emt 0:00:30]} Kd6 38. Rh7 {[%emt 0:00:30]} Rc2+ 39. Kf3 {[%emt 0:00:30]} Rxa2 40. Rxh6+ {[%emt 0:00:30]} Ne6 41. g4 {[%emt 0:30:30]} Ra5 42. Ba7 {[%emt 0:00:30]} Rb5 43. Bb8+ {[%emt 0:00:30]} Ke7 44. Rh7+ {[%emt 0:00:30]} Kf6 45. Rd7 {[%emt 0:00:30]} a5 46. Ke2 {[%emt 0:00:30]} a4 47. Kd2 {[%emt 0:00:30]} a3 48. Kc2 {[%emt 0:00:30]} Nc5 49. Rd6+ {[%emt 0:00:30]} Kf7 50. Rd1 {[%emt 0:00:30]} Rb2+ 51. Kc3 {[%emt 0:00:30]} Ne4+ 52. Kd4 {[%emt 0:00:30]} Nd2 53. Be5 {[%emt 0:00:30]} Nf3+ 54. Ke4 {[%emt 0:00:30]} Nxe5 55. Kxe5 {[%emt 0:00:30]} a2 56. Ra1 {[%emt 0:00:30]} Rxh2 57. Kf5 {[%emt 0:00:30]} Rf2+ 58. Kxg5 {[%emt 0:00:30]} b5 59. Rc1 {[%emt 0:00:30]} b4 0-1

[Event "Fagernes Open 2021"]
[Site "Fagernes"]
[Date "2021.10.13"]
[Round "5.16"]
[White "Stokhaug, Jon Arne"]
[Black "Carlin, Tormod"]
[Result "1/2-1/2"]
[ECO "D02"]
[WhiteElo "1861"]
[BlackElo "1554"]
[Annotator "NA"]
[PlyCount "106"]
[EventDate "2021.10.10"]
[EventCountry "NOR"]
[SourceTitle "playchess.com"]
[Source "ChessBase"]
[SourceQuality "1"]
[TimeControl "40/5400+30:1800+30"]

1. d4 {[%emt 0:00:00]} d5 {[%emt 0:00:00]} 2. Bf4 {[%emt 0:00:00]} Nf6 {[%emt 0:00:00]} 3. e3 {[%emt 0:00:00]} e6 {[%emt 0:00:00]} 4. Nd2 {[%emt 0:00:00]} c5 {[%emt 0:00:00]} 5. c3 {[%emt 0:00:00]} Nc6 {[%emt 0:00:00]} 6. Ngf3 {[%emt 0:00:00]} Bd6 {[%emt 0:00:00]} 7. Bg5 {[%emt 0:00:00]} b6 {[%emt 0:00:00]} 8. Bd3 {[%emt 0:00:00]} Bb7 {[%emt 0:00:00]} 9. O-O {[%emt 0:00:43]} Qc7 {[%emt 0:00:09]} 10. Bxf6 {[%emt 0:09:40]} gxf6 {[%emt 0:00:17]} 11. e4 {[%emt 0:00:05]} Ne7 {[%emt 0:04:25]} 12. Bb5+ {[%emt 0:05:31]} Bc6 {[%emt 0:02:26]} 13. Bxc6+ {[%emt 0:02:12]} Qxc6 {[%emt 0:00:06]} 14. Qe2 {[%emt 0:00:55]} Rg8 {[%emt 0:06:22]} 15. a4 {[%emt 0:02:15]} Bf4 {[%emt 0:10:16]} 16. a5 {[%emt 0:09:42]} Bxd2 {[%emt 0:04:48]} 17. Nxd2 {[%emt 0:01:38]} b5 {[%emt 0:07:14]} 18. dxc5 {[%emt 0:05:36]} Qxc5 {[%emt 0:02:05]} 19. Nb3 {[%emt 0:00:48]} Qc4 {[%emt 0:02:40]} 20. Qxc4 {[%emt 0:02:48]} dxc4 {[%emt 0:01:33]} 21. Nd4 {[%emt 0:00:44]} a6 {[%emt 0:00:27]} 22. g3 {[%emt 0:00:35]} e5 {[%emt 0:00:38]} 23. Nc2 {[%emt 0:00:15]} Nc6 {[%emt 0:01:36]} 24. Ne3 {[%emt 0:00:57]} Ne7 {[%emt 0:01:21]} 25. Rfd1 {[%emt 0:01:26]} Rd8 {[%emt 0:03:04]} 26. Kf1 {[%emt 0:00:23]} Rg6 {[%emt 0:02:21]} 27. Ke2 {[%emt 0:02:35]} f5 {[%emt 0:02:48]} 28. exf5 {[%emt 0:02:15]} Rgd6 {[%emt 0:00:17]} 29. Rxd6 {[%emt 0:04:12]} Rxd6 {[%emt 0:00:47]} 30. Rd1 {[%emt 0:01:06]} Kd7 {[%emt 0:05:02]} 31. Ng4 {[%emt 0:05:15]} Nc6 {[%emt 0:02:57]} 32. Nf6+ {[%emt 0:00:56]} Ke7 {[%emt 0:00:08]} 33. Nxh7 {[%emt 0:03:30]} Rxd1 {[%emt 0:00:13]} 34. Kxd1 {[%emt 0:00:13]} f6 {[%emt 0:00:47]} 35. g4 {[%emt 0:00:34]} Kf7 {[%emt 0:00:19]} 36. g5 {[%emt 0:00:15]} fxg5 {[%emt 0:00:21]} 37. Nxg5+ {[%emt 0:00:13]} Kf6 {[%emt 0:00:04]} 38. Ne4+ {[%emt 0:01:48]} Kxf5 {[%emt 0:01:30]} 39. Nc5 {[%emt 0:00:21]} Nxa5 {[%emt 0:00:58]} 40. Nxa6 {[%emt 0:00:31]} Nc6 {[%emt 0:00:09]} 41. Ke2 {[%emt 0:30:37]} e4 {[%emt 0:35:19]} 42. Ke3 {[%emt 0:05:17]} Ne5 {[%emt 0:00:31]} 43. Nc7 {[%emt 0:02:21]} Ng4+ {[%emt 0:01:51]} 44. Ke2 {[%emt 0:00:12]} Nxh2 {[%emt 0:01:00]} 45. Nxb5 {[%emt 0:00:08]} Ke5 {[%emt 0:00:10]} 46. Na3 {[%emt 0:04:07]} Kd5 {[%emt 0:00:41]} 47. Nb1 {[%emt 0:05:48]} Ng4 {[%emt 0:02:44]} 48. Nd2 {[%emt 0:00:10]} Ne5 {[%emt 0:01:22]} 49. Ke3 {[%emt 0:00:19]} Ng4+ {[%emt 0:00:25]} 50. Ke2 {[%emt 0:01:02]} Ne5 {[%emt 0:03:10]} 51. Ke3 {[%emt 0:04:53]} Ng4+ {[%emt 0:00:50]} 52. Ke2 {[%emt 0:01:52]} Ne5 {[%emt 0:00:31]} 53. Ke3 {[%emt 0:04:38]} Ng4+ {[%emt 0:00:18]} 1/2-1/2